[Event "January 2 Late 2024"]
[Site "https://www.chess.com"]
[Date "2024.01.02"]
[Round "5"]
[White "Bhavikatti, Neil"]
[Black "Rodriguez Avila, Alvaro"]
[Result "1-0"]
[Board "156"]
[TimeControl "180+1"]
[WhiteFideId "30935024"]
[BlackFideId "24570249"]
[WhiteElo "2456"]
[BlackElo "2300"]
[WhiteTeam "USA"]
[BlackTeam "ESP"]
[WhiteClock "0:00:08"]
[BlackClock "0:00:02"]

1. Nf3 {[%clk 0:03:00]}  Nf6 {[%clk 0:03:00]} 2. d4 {[%clk 0:03:00]}  g6 {[%clk 0:03:00]} 3. c4 {[%clk 0:02:58]}  Bg7 {[%clk 0:02:59]} 4. Nc3 {[%clk 0:02:59]}  O-O {[%clk 0:02:58]} 5. Bg5 {[%clk 0:02:52]}  d6 {[%clk 0:02:55]} 6. e3 {[%clk 0:02:49]}  Nbd7 {[%clk 0:02:54]} 7. Be2 {[%clk 0:02:43]}  e5 {[%clk 0:02:55]} 8. O-O {[%clk 0:02:42]}  Re8 {[%clk 0:02:51]} 9. Qc2 {[%clk 0:02:36]}  c6 {[%clk 0:02:40]} 10. Rfd1 {[%clk 0:02:35]}  Qc7 {[%clk 0:02:40]} 11. b4 {[%clk 0:02:33]}  exd4 {[%clk 0:02:36]} 12. Nxd4 {[%clk 0:02:29]}  a5 {[%clk 0:02:32]} 13. b5 {[%clk 0:02:27]}  Nc5 {[%clk 0:02:26]} 14. bxc6 {[%clk 0:02:21]}  bxc6 {[%clk 0:02:23]} 15. Bf3 {[%clk 0:02:19]}  Bd7 {[%clk 0:02:19]} 16. Bf4 {[%clk 0:02:16]}  Rad8 {[%clk 0:01:56]} 17. Rab1 {[%clk 0:01:58]}  Ng4 {[%clk 0:01:38]} 18. Nb3 {[%clk 0:00:52]}  Ne5 {[%clk 0:01:26]} 19. Nxc5 {[%clk 0:00:49]}  dxc5 {[%clk 0:01:25]} 20. Be4 {[%clk 0:00:26]}  Be6 {[%clk 0:01:20]} 21. Na4 {[%clk 0:00:25]}  Qa7 {[%clk 0:01:15]} 22. Bxe5 {[%clk 0:00:22]}  Bxe5 {[%clk 0:01:16]} 23. Bxc6 {[%clk 0:00:22]}  Bxh2+ {[%clk 0:01:13]} 24. Kh1 {[%clk 0:00:21]}  Rf8 {[%clk 0:01:10]} 25. Rb7 {[%clk 0:00:17]}  Rxd1+ {[%clk 0:01:05]} 26. Qxd1 {[%clk 0:00:17]}  Qa6 {[%clk 0:01:06]} 27. Rb6 {[%clk 0:00:16]}  Qxc4 {[%clk 0:00:50]} 28. Kxh2 {[%clk 0:00:16]}  Qh4+ {[%clk 0:00:51]} 29. Kg1 {[%clk 0:00:16]}  Rd8 {[%clk 0:00:51]} 30. Qe2 {[%clk 0:00:13]}  Bg4 {[%clk 0:00:44]} 31. f3 {[%clk 0:00:10]}  Bf5 {[%clk 0:00:14]} 32. Rb2 {[%clk 0:00:09]}  c4 {[%clk 0:00:12]} 33. Rd2 {[%clk 0:00:08]}  Bd3 {[%clk 0:00:12]} 34. Qf2 {[%clk 0:00:08]}  Qe7 {[%clk 0:00:12]} 35. Be4 {[%clk 0:00:08]}  Qb4 {[%clk 0:00:12]} 36. Nb2 {[%clk 0:00:07]}  Qc3 {[%clk 0:00:09]} 37. Nxd3 {[%clk 0:00:07]}  cxd3 {[%clk 0:00:10]} 38. Qe1 {[%clk 0:00:07]}  Kg7 {[%clk 0:00:09]} 39. Kh2 {[%clk 0:00:07]}  Qe5+ {[%clk 0:00:09]} 40. g3 {[%clk 0:00:07]}  Qc3 {[%clk 0:00:09]} 41. Qd1 {[%clk 0:00:07]}  f5 {[%clk 0:00:08]} 42. Rxd3 {[%clk 0:00:08]}  Rxd3 {[%clk 0:00:06]} 43. Bxd3 {[%clk 0:00:09]}  Qe5 {[%clk 0:00:06]} 44. Qc2 {[%clk 0:00:10]}  Qxe3 {[%clk 0:00:06]} 45. Qe2 {[%clk 0:00:10]}  Qh6+ {[%clk 0:00:05]} 46. Kg2 {[%clk 0:00:10]}  Qc1 {[%clk 0:00:05]} 47. Bc4 {[%clk 0:00:09]}  Qc3 {[%clk 0:00:05]} 48. Bb3 {[%clk 0:00:09]}  Qf6 {[%clk 0:00:04]} 49. f4 {[%clk 0:00:08]}  Qc6+ {[%clk 0:00:04]} 50. Qf3 {[%clk 0:00:08]}  Qc3 {[%clk 0:00:02]} 51. Qxc3+ {[%clk 0:00:08]} 1-0

[Event "January 2 Late 2024"]
[Site "https://www.chess.com"]
[Date "2024.01.02"]
[Round "5"]
[White "Dobrijevic, Milan"]
[Black "Coelho, Ramyres Santana"]
[Result "1-0"]
[Board "157"]
[TimeControl "180+1"]
[WhiteFideId "931632"]
[BlackFideId "2120690"]
[WhiteElo "2434"]
[BlackElo "2299"]
[WhiteTeam "SRB"]
[BlackTeam "BRA"]
[WhiteClock "0:00:07"]
[BlackClock "0:00:11"]

1. e4 {[%clk 0:03:00]}  c5 {[%clk 0:02:55]} 2. Nc3 {[%clk 0:02:59]}  e6 {[%clk 0:02:54]} 3. Nf3 {[%clk 0:02:59]}  a6 {[%clk 0:02:54]} 4. d4 {[%clk 0:02:59]}  cxd4 {[%clk 0:02:55]} 5. Nxd4 {[%clk 0:03:00]}  Nc6 {[%clk 0:02:56]} 6. Nxc6 {[%clk 0:02:59]}  bxc6 {[%clk 0:02:57]} 7. Bd3 {[%clk 0:02:59]}  d5 {[%clk 0:02:55]} 8. Qf3 {[%clk 0:02:59]}  Nf6 {[%clk 0:02:53]} 9. O-O {[%clk 0:02:57]}  Bc5 {[%clk 0:02:50]} 10. Bg5 {[%clk 0:02:54]}  h6 {[%clk 0:02:49]} 11. Bh4 {[%clk 0:02:53]}  g5 {[%clk 0:02:48]} 12. Bg3 {[%clk 0:02:51]}  Be7 {[%clk 0:02:34]} 13. Rfe1 {[%clk 0:02:45]}  d4 {[%clk 0:02:30]} 14. Na4 {[%clk 0:02:20]}  g4 {[%clk 0:02:28]} 15. Qe2 {[%clk 0:02:19]}  h5 {[%clk 0:02:15]} 16. c3 {[%clk 0:02:09]}  h4 {[%clk 0:02:10]} 17. Be5 {[%clk 0:02:07]}  dxc3 {[%clk 0:02:07]} 18. Nxc3 {[%clk 0:02:02]}  Rg8 {[%clk 0:02:06]} 19. Rad1 {[%clk 0:02:00]}  Qb6 {[%clk 0:02:06]} 20. Na4 {[%clk 0:01:23]}  Qa5 {[%clk 0:02:06]} 21. Bxf6 {[%clk 0:01:18]}  Bxf6 {[%clk 0:02:06]} 22. e5 {[%clk 0:01:12]}  Qxa4 {[%clk 0:01:46]} 23. exf6 {[%clk 0:01:11]}  g3 {[%clk 0:01:45]} 24. Be4 {[%clk 0:00:54]}  gxh2+ {[%clk 0:01:42]} 25. Kh1 {[%clk 0:00:53]}  Bd7 {[%clk 0:01:38]} 26. Qh5 {[%clk 0:00:38]}  O-O-O {[%clk 0:01:32]} 27. Qxf7 {[%clk 0:00:33]}  Rgf8 {[%clk 0:01:14]} 28. Qe7 {[%clk 0:00:29]}  Rfe8 {[%clk 0:01:03]} 29. Qd6 {[%clk 0:00:29]}  h3 {[%clk 0:00:57]} 30. g3 {[%clk 0:00:25]}  e5 {[%clk 0:00:48]} 31. Qc5 {[%clk 0:00:17]}  Kb7 {[%clk 0:00:37]} 32. f7 {[%clk 0:00:16]}  Rf8 {[%clk 0:00:26]} 33. Rxd7+ {[%clk 0:00:15]}  Rxd7 {[%clk 0:00:26]} 34. Qxf8 {[%clk 0:00:15]}  Rd1 {[%clk 0:00:15]} 35. Qe7+ {[%clk 0:00:13]}  Kb6 {[%clk 0:00:15]} 36. Rxd1 {[%clk 0:00:09]}  Qxd1+ {[%clk 0:00:15]} 37. Kxh2 {[%clk 0:00:08]}  Qf1 {[%clk 0:00:14]} 38. f8=Q {[%clk 0:00:07]}  Qb5 {[%clk 0:00:11]} 39. Qb8+ {[%clk 0:00:07]}  Ka5 {[%clk 0:00:11]} 40. Qa3+ {[%clk 0:00:06]}  Qa4 {[%clk 0:00:11]} 41. b4# {[%clk 0:00:07]} 1-0

[Event "January 2 Late 2024"]
[Site "https://www.chess.com"]
[Date "2024.01.02"]
[Round "5"]
[White "Bryant, Todd"]
[Black "Suich, Peter D"]
[Result "1-0"]
[Board "158"]
[TimeControl "180+1"]
[WhiteFideId "2031299"]
[BlackFideId "2050366"]
[WhiteElo "2275"]
[BlackElo "2432"]
[WhiteTeam "USA"]
[BlackTeam "USA"]
[WhiteClock "0:00:09"]
[BlackClock "0:00:02"]

1. e4 {[%clk 0:03:00]}  c5 {[%clk 0:03:00]} 2. Nf3 {[%clk 0:03:01]}  e6 {[%clk 0:03:00]} 3. d4 {[%clk 0:03:01]}  cxd4 {[%clk 0:03:01]} 4. Nxd4 {[%clk 0:03:02]}  a6 {[%clk 0:03:01]} 5. Bd3 {[%clk 0:03:02]}  Qc7 {[%clk 0:03:02]} 6. O-O {[%clk 0:03:02]}  Bc5 {[%clk 0:03:02]} 7. Nb3 {[%clk 0:03:01]}  Be7 {[%clk 0:03:02]} 8. Qe2 {[%clk 0:02:57]}  d6 {[%clk 0:03:01]} 9. c4 {[%clk 0:02:56]}  Nd7 {[%clk 0:03:01]} 10. f4 {[%clk 0:02:56]}  Ngf6 {[%clk 0:03:01]} 11. Nc3 {[%clk 0:02:56]}  b6 {[%clk 0:03:00]} 12. Nd4 {[%clk 0:02:55]}  Bb7 {[%clk 0:02:59]} 13. b3 {[%clk 0:02:54]}  b5 {[%clk 0:02:55]} 14. Bb2 {[%clk 0:02:43]}  b4 {[%clk 0:02:50]} 15. Nd5 {[%clk 0:02:36]}  exd5 {[%clk 0:02:34]} 16. exd5 {[%clk 0:02:37]}  g6 {[%clk 0:02:30]} 17. Rae1 {[%clk 0:02:28]}  Nc5 {[%clk 0:02:22]} 18. Nc6 {[%clk 0:02:05]}  Bxc6 {[%clk 0:02:16]} 19. Bxf6 {[%clk 0:02:03]}  O-O {[%clk 0:02:02]} 20. Bxe7 {[%clk 0:01:50]}  Nxd3 {[%clk 0:01:47]} 21. Qxd3 {[%clk 0:01:43]}  Rfe8 {[%clk 0:01:47]} 22. Bf6 {[%clk 0:01:37]}  Bd7 {[%clk 0:01:46]} 23. Qg3 {[%clk 0:01:26]}  h6 {[%clk 0:00:58]} 24. f5 {[%clk 0:01:05]}  Kh7 {[%clk 0:00:56]} 25. fxg6+ {[%clk 0:01:00]}  fxg6 {[%clk 0:00:57]} 26. Be7 {[%clk 0:00:57]}  Bf5 {[%clk 0:00:52]} 27. Bxd6 {[%clk 0:00:57]}  Qb6+ {[%clk 0:00:45]} 28. c5 {[%clk 0:00:54]}  Qb7 {[%clk 0:00:38]} 29. Qh4 {[%clk 0:00:45]}  Qxd5 {[%clk 0:00:29]} 30. Re7+ {[%clk 0:00:43]}  Rxe7 {[%clk 0:00:27]} 31. Qxe7+ {[%clk 0:00:43]}  Kg8 {[%clk 0:00:27]} 32. Be5 {[%clk 0:00:38]}  Qf7 {[%clk 0:00:26]} 33. Qxf7+ {[%clk 0:00:38]}  Kxf7 {[%clk 0:00:27]} 34. g4 {[%clk 0:00:35]}  Ke6 {[%clk 0:00:27]} 35. gxf5+ {[%clk 0:00:36]}  Kxe5 {[%clk 0:00:28]} 36. f6 {[%clk 0:00:25]}  Kd5 {[%clk 0:00:25]} 37. f7 {[%clk 0:00:23]}  Rf8 {[%clk 0:00:25]} 38. Rf6 {[%clk 0:00:20]}  Kxc5 {[%clk 0:00:26]} 39. Rxa6 {[%clk 0:00:19]}  Rxf7 {[%clk 0:00:24]} 40. Rxg6 {[%clk 0:00:20]}  Ra7 {[%clk 0:00:23]} 41. Rg2 {[%clk 0:00:17]}  Ra6 {[%clk 0:00:22]} 42. Rc2+ {[%clk 0:00:15]}  Kb5 {[%clk 0:00:18]} 43. Kf2 {[%clk 0:00:16]}  Rf6+ {[%clk 0:00:18]} 44. Kg3 {[%clk 0:00:16]}  Re6 {[%clk 0:00:19]} 45. Kg4 {[%clk 0:00:16]}  Re3 {[%clk 0:00:17]} 46. h4 {[%clk 0:00:14]}  Rc3 {[%clk 0:00:16]} 47. Re2 {[%clk 0:00:13]}  Rc6 {[%clk 0:00:13]} 48. Rg2 {[%clk 0:00:13]}  Rd6 {[%clk 0:00:13]} 49. Kh5 {[%clk 0:00:13]}  Kc5 {[%clk 0:00:13]} 50. Rg6 {[%clk 0:00:11]}  Rd4 {[%clk 0:00:12]} 51. Rxh6 {[%clk 0:00:09]}  Rd1 {[%clk 0:00:11]} 52. Ra6 {[%clk 0:00:09]}  Kd4 {[%clk 0:00:11]} 53. Kg6 {[%clk 0:00:09]}  Kc3 {[%clk 0:00:11]} 54. h5 {[%clk 0:00:09]}  Kb2 {[%clk 0:00:02]} 55. h6 {[%clk 0:00:09]} 1-0

[Event "January 2 Late 2024"]
[Site "https://www.chess.com"]
[Date "2024.01.02"]
[Round "5"]
[White "Curtis, John"]
[Black "Seletsky, Grigory"]
[Result "0-1"]
[Board "159"]
[TimeControl "180+1"]
[WhiteFideId "3200256"]
[BlackFideId "14112191"]
[WhiteElo "2229"]
[BlackElo "2421"]
[WhiteTeam "AUS"]
[BlackTeam "UKR"]
[WhiteClock "0:00:58"]
[BlackClock "0:00:19"]

1. e4 {[%clk 0:02:44]}  e6 {[%clk 0:01:15]} 2. Bc4 {[%clk 0:02:40]}  d5 {[%clk 0:01:12]} 3. exd5 {[%clk 0:02:40]}  exd5 {[%clk 0:01:13]} 4. Bb3 {[%clk 0:02:40]}  Nf6 {[%clk 0:01:13]} 5. Nf3 {[%clk 0:02:38]}  Bd6 {[%clk 0:01:13]} 6. Qe2+ {[%clk 0:02:36]}  Qe7 {[%clk 0:01:12]} 7. Qxe7+ {[%clk 0:02:35]}  Bxe7 {[%clk 0:01:12]} 8. Nc3 {[%clk 0:02:32]}  c6 {[%clk 0:01:12]} 9. Ne2 {[%clk 0:02:32]}  Bg4 {[%clk 0:01:11]} 10. d3 {[%clk 0:02:25]}  Bxf3 {[%clk 0:01:10]} 11. gxf3 {[%clk 0:02:25]}  Nbd7 {[%clk 0:01:10]} 12. Rg1 {[%clk 0:02:24]}  O-O {[%clk 0:01:10]} 13. Bd2 {[%clk 0:02:22]}  Rfe8 {[%clk 0:01:10]} 14. O-O-O {[%clk 0:02:20]}  Bd6 {[%clk 0:01:08]} 15. Ng3 {[%clk 0:02:16]}  g6 {[%clk 0:01:02]} 16. f4 {[%clk 0:02:14]}  Nc5 {[%clk 0:01:01]} 17. Rde1 {[%clk 0:02:03]}  Nxb3+ {[%clk 0:01:00]} 18. axb3 {[%clk 0:02:03]}  Rxe1+ {[%clk 0:01:01]} 19. Rxe1 {[%clk 0:01:58]}  Re8 {[%clk 0:01:01]} 20. Rxe8+ {[%clk 0:01:57]}  Nxe8 {[%clk 0:01:01]} 21. Kd1 {[%clk 0:01:58]}  f5 {[%clk 0:01:01]} 22. Ke2 {[%clk 0:01:58]}  Nc7 {[%clk 0:01:01]} 23. Be3 {[%clk 0:01:57]}  Ne6 {[%clk 0:01:00]} 24. Kf3 {[%clk 0:01:56]}  Kf7 {[%clk 0:01:00]} 25. c3 {[%clk 0:01:54]}  a6 {[%clk 0:00:59]} 26. Ne2 {[%clk 0:01:54]}  c5 {[%clk 0:00:54]} 27. c4 {[%clk 0:01:52]}  d4 {[%clk 0:00:52]} 28. Bd2 {[%clk 0:01:52]}  b6 {[%clk 0:00:48]} 29. h3 {[%clk 0:01:51]}  a5 {[%clk 0:00:48]} 30. Kg2 {[%clk 0:01:47]}  Ng7 {[%clk 0:00:45]} 31. Kf3 {[%clk 0:01:40]}  Nh5 {[%clk 0:00:43]} 32. Be1 {[%clk 0:01:40]}  Kg7 {[%clk 0:00:38]} 33. Bd2 {[%clk 0:01:40]}  Nf6 {[%clk 0:00:37]} 34. Ng3 {[%clk 0:01:39]}  Kh6 {[%clk 0:00:37]} 35. Kg2 {[%clk 0:01:36]}  Nh5 {[%clk 0:00:37]} 36. Nxh5 {[%clk 0:01:36]}  Kxh5 {[%clk 0:00:37]} 37. f3 {[%clk 0:01:36]}  h6 {[%clk 0:00:35]} 38. Kf2 {[%clk 0:01:33]}  Be7 {[%clk 0:00:35]} 39. Kg2 {[%clk 0:01:32]}  Bh4 {[%clk 0:00:35]} 40. Kf1 {[%clk 0:01:31]}  g5 {[%clk 0:00:35]} 41. fxg5 {[%clk 0:01:30]}  Bxg5 {[%clk 0:00:33]} 42. f4 {[%clk 0:01:29]}  Bh4 {[%clk 0:00:33]} 43. Kg2 {[%clk 0:01:29]}  Kg6 {[%clk 0:00:31]} 44. Kf3 {[%clk 0:01:29]}  Kh5 {[%clk 0:00:30]} 45. Kg2 {[%clk 0:01:29]}  Kg6 {[%clk 0:00:29]} 46. Kf3 {[%clk 0:01:30]}  h5 {[%clk 0:00:27]} 47. Kg2 {[%clk 0:01:29]}  Kf6 {[%clk 0:00:26]} 48. Kf3 {[%clk 0:01:29]}  Ke6 {[%clk 0:00:26]} 49. Kg2 {[%clk 0:01:29]}  Kd6 {[%clk 0:00:26]} 50. Kf3 {[%clk 0:01:30]}  Kc6 {[%clk 0:00:27]} 51. Ke2 {[%clk 0:01:28]}  Kb7 {[%clk 0:00:28]} 52. Be1 {[%clk 0:01:25]}  Bxe1 {[%clk 0:00:26]} 53. Kxe1 {[%clk 0:01:25]}  b5 {[%clk 0:00:25]} 54. Kd2 {[%clk 0:01:20]}  a4 {[%clk 0:00:24]} 55. bxa4 {[%clk 0:01:16]}  bxa4 {[%clk 0:00:19]} 56. Kc2 {[%clk 0:01:15]}  Kb6 {[%clk 0:00:20]} 57. Kb1 {[%clk 0:01:15]}  Ka5 {[%clk 0:00:20]} 58. Ka1 {[%clk 0:01:14]}  Kb4 {[%clk 0:00:17]} 59. Ka2 {[%clk 0:01:14]}  h4 {[%clk 0:00:17]} 60. Kb1 {[%clk 0:01:11]}  Kb3 {[%clk 0:00:17]} 61. Kc1 {[%clk 0:01:09]}  a3 {[%clk 0:00:17]} 62. bxa3 {[%clk 0:01:08]}  Kxa3 {[%clk 0:00:18]} 63. Kc2 {[%clk 0:01:05]}  Ka2 {[%clk 0:00:18]} 64. Kc1 {[%clk 0:01:04]}  Kb3 {[%clk 0:00:19]} 65. Kd2 {[%clk 0:01:05]}  Kb2 {[%clk 0:00:19]} 66. Kd1 {[%clk 0:01:01]}  Kc3 {[%clk 0:00:19]} 67. Ke2 {[%clk 0:00:58]}  Kc2 {[%clk 0:00:19]} 0-1

[Event "January 2 Late 2024"]
[Site "https://www.chess.com"]
[Date "2024.01.02"]
[Round "5"]
[White "Lin, Bryan Enming"]
[Black "SkinnyPuppy8"]
[Result "1-0"]
[Board "165"]
[TimeControl "180+1"]
[WhiteFideId "30987121"]
[WhiteElo "2542"]
[BlackElo "2298"]
[WhiteTeam "USA"]
[WhiteClock "0:00:34"]
[BlackClock "0:00:13"]

1. e4 {[%clk 0:03:00]}  d5 {[%clk 0:02:59]} 2. exd5 {[%clk 0:03:00]}  Nf6 {[%clk 0:03:00]} 3. Nc3 {[%clk 0:03:01]}  Bg4 {[%clk 0:03:00]} 4. f3 {[%clk 0:02:58]}  Bf5 {[%clk 0:03:00]} 5. g4 {[%clk 0:02:55]}  Bc8 {[%clk 0:03:00]} 6. Bc4 {[%clk 0:02:53]}  Nbd7 {[%clk 0:03:00]} 7. g5 {[%clk 0:02:46]}  Nb6 {[%clk 0:03:00]} 8. Bb5+ {[%clk 0:02:45]}  Nfd7 {[%clk 0:03:00]} 9. d4 {[%clk 0:02:45]}  a6 {[%clk 0:02:58]} 10. Bd3 {[%clk 0:02:45]}  g6 {[%clk 0:02:57]} 11. Nge2 {[%clk 0:02:44]}  Bg7 {[%clk 0:02:41]} 12. Bf4 {[%clk 0:02:42]}  O-O {[%clk 0:02:31]} 13. h4 {[%clk 0:02:34]}  e6 {[%clk 0:02:28]} 14. dxe6 {[%clk 0:02:29]}  fxe6 {[%clk 0:02:28]} 15. Be4 {[%clk 0:02:28]}  Qe7 {[%clk 0:02:11]} 16. Bxc7 {[%clk 0:02:07]}  Nd5 {[%clk 0:02:08]} 17. Bg3 {[%clk 0:01:56]}  N7b6 {[%clk 0:01:54]} 18. Qd3 {[%clk 0:01:38]}  Nb4 {[%clk 0:01:38]} 19. Qd2 {[%clk 0:01:36]}  Nc4 {[%clk 0:01:36]} 20. Qc1 {[%clk 0:01:36]}  Nd6 {[%clk 0:01:26]} 21. Bxd6 {[%clk 0:01:32]}  Qxd6 {[%clk 0:01:27]} 22. a3 {[%clk 0:01:31]}  Nd5 {[%clk 0:01:25]} 23. Bxd5 {[%clk 0:01:31]}  exd5 {[%clk 0:01:25]} 24. Qe3 {[%clk 0:01:29]}  Bf5 {[%clk 0:01:19]} 25. O-O-O {[%clk 0:01:25]}  Rfe8 {[%clk 0:01:18]} 26. Qd2 {[%clk 0:01:24]}  Rac8 {[%clk 0:01:18]} 27. Rde1 {[%clk 0:00:49]}  b5 {[%clk 0:00:55]} 28. Nf4 {[%clk 0:00:45]}  Rxe1+ {[%clk 0:00:53]} 29. Rxe1 {[%clk 0:00:46]}  b4 {[%clk 0:00:54]} 30. axb4 {[%clk 0:00:43]}  Qxb4 {[%clk 0:00:53]} 31. Nfxd5 {[%clk 0:00:43]}  Qa5 {[%clk 0:00:44]} 32. Ne7+ {[%clk 0:00:41]}  Kf8 {[%clk 0:00:44]} 33. Nxc8 {[%clk 0:00:42]}  Bxc8 {[%clk 0:00:30]} 34. Qf4+ {[%clk 0:00:37]}  Qf5 {[%clk 0:00:30]} 35. Qxf5+ {[%clk 0:00:36]}  Bxf5 {[%clk 0:00:29]} 36. d5 {[%clk 0:00:33]}  h6 {[%clk 0:00:25]} 37. d6 {[%clk 0:00:30]}  hxg5 {[%clk 0:00:25]} 38. hxg5 {[%clk 0:00:31]}  Bd4 {[%clk 0:00:22]} 39. Nd5 {[%clk 0:00:28]}  Bc5 {[%clk 0:00:20]} 40. Ne7 {[%clk 0:00:23]}  Bxd6 {[%clk 0:00:20]} 41. Nxf5 {[%clk 0:00:24]}  gxf5 {[%clk 0:00:21]} 42. Re6 {[%clk 0:00:23]}  Bf4+ {[%clk 0:00:20]} 43. Kd1 {[%clk 0:00:24]}  Bxg5 {[%clk 0:00:21]} 44. Rxa6 {[%clk 0:00:24]}  Ke7 {[%clk 0:00:21]} 45. b4 {[%clk 0:00:25]}  Kd7 {[%clk 0:00:21]} 46. b5 {[%clk 0:00:26]}  Be3 {[%clk 0:00:20]} 47. c4 {[%clk 0:00:26]}  Kc7 {[%clk 0:00:20]} 48. Ke2 {[%clk 0:00:27]}  f4 {[%clk 0:00:20]} 49. Kd3 {[%clk 0:00:28]}  Kb7 {[%clk 0:00:20]} 50. Ke4 {[%clk 0:00:29]}  Kc7 {[%clk 0:00:19]} 51. Kd5 {[%clk 0:00:30]}  Kb7 {[%clk 0:00:19]} 52. Rc6 {[%clk 0:00:31]}  Kb8 {[%clk 0:00:19]} 53. c5 {[%clk 0:00:31]}  Kb7 {[%clk 0:00:19]} 54. b6 {[%clk 0:00:31]}  Kb8 {[%clk 0:00:18]} 55. Rc7 {[%clk 0:00:32]}  Bf2 {[%clk 0:00:18]} 56. Kc6 {[%clk 0:00:32]}  Be3 {[%clk 0:00:17]} 57. b7 {[%clk 0:00:32]}  Bxc5 {[%clk 0:00:13]} 58. Rc8+ {[%clk 0:00:33]}  Ka7 {[%clk 0:00:13]} 59. Ra8# {[%clk 0:00:34]} 1-0

[Event "January 2 Late 2024"]
[Site "https://www.chess.com"]
[Date "2024.01.02"]
[Round "5"]
[White "Skaric, Djuro"]
[Black "Dobre, Claudiu-Cristian"]
[Result "0-1"]
[Board "168"]
[TimeControl "180+1"]
[WhiteFideId "934569"]
[BlackFideId "1211854"]
[WhiteElo "2290"]
[BlackElo "2490"]
[WhiteTeam "SRB"]
[BlackTeam "ROU"]
[WhiteClock "0:01:20"]
[BlackClock "0:01:13"]

1. g3 {[%clk 0:03:00]}  d5 {[%clk 0:02:56]} 2. Bg2 {[%clk 0:03:00]}  c6 {[%clk 0:02:56]} 3. d3 {[%clk 0:03:01]}  Nf6 {[%clk 0:02:56]} 4. Nf3 {[%clk 0:03:01]}  Bg4 {[%clk 0:02:56]} 5. O-O {[%clk 0:03:01]}  Nbd7 {[%clk 0:02:55]} 6. h3 {[%clk 0:03:00]}  Bxf3 {[%clk 0:02:55]} 7. Bxf3 {[%clk 0:03:00]}  e5 {[%clk 0:02:56]} 8. Bg2 {[%clk 0:03:00]}  Be7 {[%clk 0:02:49]} 9. c4 {[%clk 0:03:00]}  dxc4 {[%clk 0:02:31]} 10. dxc4 {[%clk 0:02:59]}  a5 {[%clk 0:02:31]} 11. Nc3 {[%clk 0:02:58]}  Qc7 {[%clk 0:02:31]} 12. Be3 {[%clk 0:02:57]}  Nc5 {[%clk 0:02:18]} 13. Qc2 {[%clk 0:02:56]}  O-O {[%clk 0:02:13]} 14. Rfd1 {[%clk 0:02:56]}  Ne6 {[%clk 0:02:13]} 15. b3 {[%clk 0:02:49]}  Bc5 {[%clk 0:02:06]} 16. Bg5 {[%clk 0:02:35]}  Nxg5 {[%clk 0:02:02]} 17. h4 {[%clk 0:02:33]}  Ne6 {[%clk 0:01:59]} 18. Bh3 {[%clk 0:02:32]}  e4 {[%clk 0:01:57]} 19. Kg2 {[%clk 0:02:26]}  Qe5 {[%clk 0:01:57]} 20. Na4 {[%clk 0:02:12]}  Bd4 {[%clk 0:01:48]} 21. Rab1 {[%clk 0:02:11]}  Rfd8 {[%clk 0:01:35]} 22. e3 {[%clk 0:02:11]}  Ba7 {[%clk 0:01:32]} 23. Bxe6 {[%clk 0:02:07]}  Qxe6 {[%clk 0:01:30]} 24. c5 {[%clk 0:02:06]}  Qg4 {[%clk 0:01:27]} 25. Rd6 {[%clk 0:01:34]}  Nd5 {[%clk 0:01:16]} 26. Rxd8+ {[%clk 0:01:23]}  Rxd8 {[%clk 0:01:15]} 27. Rd1 {[%clk 0:01:23]}  Nxe3+ {[%clk 0:01:13]} 28. fxe3 {[%clk 0:01:20]} 0-1

[Event "January 2 Late 2024"]
[Site "https://www.chess.com"]
[Date "2024.01.02"]
[Round "5"]
[White "Minina, Veronika"]
[Black "Vujacic, Igor"]
[Result "0-1"]
[Board "172"]
[TimeControl "180+1"]
[WhiteFideId "4174780"]
[BlackFideId "932620"]
[WhiteElo "2280"]
[BlackElo "2430"]
[WhiteTeam "RUS"]
[BlackTeam "MNE"]
[WhiteClock "0:00:09"]
[BlackClock "0:00:06"]

1. Nf3 {[%clk 0:03:00]}  d5 {[%clk 0:02:59]} 2. g3 {[%clk 0:03:00]}  Nd7 {[%clk 0:02:58]} 3. Bg2 {[%clk 0:02:59]}  e5 {[%clk 0:02:57]} 4. O-O {[%clk 0:02:56]}  e4 {[%clk 0:02:50]} 5. Ne1 {[%clk 0:02:54]}  Bc5 {[%clk 0:02:48]} 6. c4 {[%clk 0:02:48]}  c6 {[%clk 0:02:40]} 7. d3 {[%clk 0:02:37]}  Ngf6 {[%clk 0:02:37]} 8. cxd5 {[%clk 0:02:35]}  cxd5 {[%clk 0:02:35]} 9. Nc3 {[%clk 0:02:35]}  Qe7 {[%clk 0:02:20]} 10. Bg5 {[%clk 0:02:15]}  Qe5 {[%clk 0:01:48]} 11. Bf4 {[%clk 0:02:11]}  Qf5 {[%clk 0:01:07]} 12. dxe4 {[%clk 0:02:06]}  dxe4 {[%clk 0:01:06]} 13. Bd6 {[%clk 0:01:57]}  e3 {[%clk 0:00:58]} 14. f3 {[%clk 0:01:27]}  Bxd6 {[%clk 0:00:41]} 15. Qxd6 {[%clk 0:01:28]}  Qe5 {[%clk 0:00:41]} 16. Qxe5+ {[%clk 0:01:18]}  Nxe5 {[%clk 0:00:42]} 17. Nc2 {[%clk 0:01:15]}  Nc4 {[%clk 0:00:16]} 18. b3 {[%clk 0:01:13]}  Bf5 {[%clk 0:00:16]} 19. Nd4 {[%clk 0:01:08]}  Nd6 {[%clk 0:00:17]} 20. Rfd1 {[%clk 0:00:53]}  O-O {[%clk 0:00:13]} 21. Nxf5 {[%clk 0:00:48]}  Nxf5 {[%clk 0:00:13]} 22. Nd5 {[%clk 0:00:36]}  Nxd5 {[%clk 0:00:07]} 23. Rxd5 {[%clk 0:00:37]}  g6 {[%clk 0:00:08]} 24. Bh3 {[%clk 0:00:37]}  Rfd8 {[%clk 0:00:04]} 25. Rad1 {[%clk 0:00:36]}  Rxd5 {[%clk 0:00:04]} 26. Rxd5 {[%clk 0:00:37]}  Rc8 {[%clk 0:00:04]} 27. Bxf5 {[%clk 0:00:29]}  gxf5 {[%clk 0:00:05]} 28. Re5 {[%clk 0:00:23]}  Rc2 {[%clk 0:00:03]} 29. Rxe3 {[%clk 0:00:17]}  Rxa2 {[%clk 0:00:04]} 30. Kf2 {[%clk 0:00:16]}  Kg7 {[%clk 0:00:04]} 31. Rd3 {[%clk 0:00:17]}  b5 {[%clk 0:00:02]} 32. Rd5 {[%clk 0:00:16]}  a6 {[%clk 0:00:03]} 33. Rxf5 {[%clk 0:00:16]}  Rb2 {[%clk 0:00:03]} 34. Rg5+ {[%clk 0:00:16]}  Kf8 {[%clk 0:00:03]} 35. Rc5 {[%clk 0:00:14]}  Rxb3 {[%clk 0:00:03]} 36. Rc8+ {[%clk 0:00:15]}  Kg7 {[%clk 0:00:03]} 37. Ra8 {[%clk 0:00:14]}  Ra3 {[%clk 0:00:03]} 38. Rb8 {[%clk 0:00:14]}  Ra4 {[%clk 0:00:03]} 39. Ke3 {[%clk 0:00:13]}  b4 {[%clk 0:00:03]} 40. Kd3 {[%clk 0:00:13]}  a5 {[%clk 0:00:04]} 41. h4 {[%clk 0:00:12]}  Ra3+ {[%clk 0:00:03]} 42. Kc2 {[%clk 0:00:11]}  Ra2+ {[%clk 0:00:03]} 43. Kd3 {[%clk 0:00:11]}  Ra3+ {[%clk 0:00:03]} 44. Kc4 {[%clk 0:00:10]}  Re3 {[%clk 0:00:02]} 45. Ra8 {[%clk 0:00:09]}  Ra3 {[%clk 0:00:02]} 46. g4 {[%clk 0:00:07]}  b3 {[%clk 0:00:02]} 47. Kc3 {[%clk 0:00:06]}  a4 {[%clk 0:00:03]} 48. f4 {[%clk 0:00:04]}  Ra2 {[%clk 0:00:03]} 49. Rb8 {[%clk 0:00:04]}  Rc2+ {[%clk 0:00:03]} 50. Kd3 {[%clk 0:00:03]}  Ra2 {[%clk 0:00:02]} 51. Rb4 {[%clk 0:00:04]}  b2 {[%clk 0:00:02]} 52. Kc2 {[%clk 0:00:05]}  a3 {[%clk 0:00:03]} 53. Rb3 {[%clk 0:00:05]}  Ra1 {[%clk 0:00:03]} 54. Rxb2 {[%clk 0:00:05]}  axb2 {[%clk 0:00:03]} 55. Kxb2 {[%clk 0:00:06]}  Rg1 {[%clk 0:00:03]} 56. Kc3 {[%clk 0:00:07]}  Rxg4 {[%clk 0:00:04]} 57. e3 {[%clk 0:00:07]}  Rxh4 {[%clk 0:00:04]} 58. Kd4 {[%clk 0:00:08]}  Rg4 {[%clk 0:00:04]} 59. Ke4 {[%clk 0:00:08]}  Kg6 {[%clk 0:00:04]} 60. Kf3 {[%clk 0:00:09]}  f5 {[%clk 0:00:04]} 61. Kf2 {[%clk 0:00:10]}  h5 {[%clk 0:00:04]} 62. Kf3 {[%clk 0:00:11]}  h4 {[%clk 0:00:05]} 63. Kf2 {[%clk 0:00:12]}  h3 {[%clk 0:00:05]} 64. Kf3 {[%clk 0:00:12]}  h2 {[%clk 0:00:06]} 65. Kf2 {[%clk 0:00:09]}  h1=Q {[%clk 0:00:06]} 0-1